bitfinex-derivatives/quotes_ETHF0:USTF0_20240910
["timestamp","ask_amount","ask_price","bid_price","bid_amount"]
[1725986818078,2.67274383,2335.5,2335.4,1.56247478]
[1725986818392,0.42815,2335.5,2335.4,1.56247478]
[1725986819387,2.67260617,2335.5,2335.4,1.56247478]
[1725986819884,2.24445617,2335.5,2335.4,3.10247478]
[1725986820083,3.06718617,2335.6,2335.5,0.42815]
[1725986820286,3.06718617,2335.6,2335.5,1.56245478]
[1725986820797,0.82273,2335.6,2335.5,1.56208097]
[1725986821091,0.82273,2335.6,2335.5,1.5621093]
[1725986821288,3.067051,2335.6,2335.5,1.5621093]
[1725986821590,0.82273,2335.6,2335.5,1.5621093]
[1725986821989,3.06704283,2335.6,2335.5,1.5621093]
[1725986822184,0.82273,2335.6,2335.5,1.5621093]
[1725986823081,0.82273,2335.6,2335.5,1.1339593]
[1725986823288,0.82273,2335.6,2335.3,32.0]
[1725986823289,0.42816,2335.5,2335.3,32.0]
[1725986823586,0.42816,2335.5,2335.4,0.42816]
[1725986823794,3.1968311,2335.6,2335.5,0.42815]
[1725986824084,3.1968311,2335.6,2335.5,1.94263123]
[1725986824289,5.1649611,2335.6,2335.5,1.05997832]
[1725986824686,3.6249611,2335.6,2335.5,1.05997832]
[1725986824988,3.6249611,2335.6,2335.5,1.56123153]
[1725986825184,0.3946,2335.6,2335.5,1.56123153]
[1725986825392,0.82273,2335.6,2335.5,1.05997832]
[1725986826396,0.82273,2335.6,2335.5,1.56125657]
[1725986826581,0.82273,2335.6,2335.5,1.13310657]
[1725986826890,0.82273,2335.6,2335.5,0.63182832]
[1725986829995,0.42815,2335.5,2335.4,0.42816]
[1725986830298,2.67246608,2335.5,2335.4,0.42816]
[1725986830591,2.67246608,2335.5,2335.4,1.57306839]
[1725986831198,2.67249416,2335.5,2335.4,1.57306839]
[1725986831787,0.42815,2335.5,2335.4,1.57306839]
[1725986832193,2.67254497,2335.5,2335.4,1.57306839]
[1725986832495,0.42815,2335.5,2335.4,1.57306839]
[1725986832894,3.62814383,2335.6,2335.5,0.42815]
[1725986833090,5.56638001,2335.6,2335.5,1.07133189]
[1725986833787,2.24425058,2335.6,2335.5,15.49306253]
[1725986833985,3.92737153,2335.6,2335.5,16.77817679]
[1725986834297,1.12205781,2335.6,2335.5,16.77817679]
[1725986834495,1.12205781,2335.6,2335.5,17.19677679]
[1725986834998,1.12205781,2335.6,2335.5,18.31335332]
[1725986835493,1.12205781,2335.6,2335.5,19.38373332]
[1725986835693,1.12204974,2335.8,2335.7,1.49839]
[1725986835895,1.12204974,2335.9,2335.8,0.42809]
[1725986836087,1.68312095,2336.0,2335.9,0.42807]
[1725986836088,1.12204974,2336.0,2335.9,0.42807]
[1725986836289,1.12204974,2336.0,2335.9,9.70691679]
[1725986836494,1.12204974,2336.0,2335.9,9.73611679]
[1725986836797,1.12204974,2336.0,2335.9,6.27807]
[1725986836997,1.12204974,2336.1,2335.9,9.23113876]
[1725986837191,1.12204974,2336.1,2336.0,2.09718582]
[1725986837494,1.12204974,2336.1,2336.0,6.87881178]
[1725986837695,1.12204974,2336.2,2336.1,0.42804]
[1725986837892,1.68312095,2336.3,2336.2,0.42802]
[1725986837893,1.12204974,2336.3,2336.2,0.42802]
[1725986838199,1.12204974,2336.4,2336.3,0.428]
[1725986838391,1.68312095,2336.5,2336.3,7.17191964]
[1725986838695,1.12046633,2336.5,2336.4,38.87716857]
[1725986838898,1.12046633,2336.5,2336.4,38.24307743]
[1725986839093,1.12046633,2336.6,2336.5,0.42796]
[1725986839294,1.12046633,2336.6,2336.5,6.24796]
[1725986839600,1.12046633,2336.7,2336.6,0.42795]
[1725986840798,1.88926633,2336.8,2336.7,0.42793]
[1725986841395,0.7688,2336.8,2336.7,0.42793]
[1725986841699,1.88926633,2336.8,2336.7,0.42793]
[1725986841999,0.42793,2336.7,2336.4,32.42797]
[1725986842202,1.54625543,2336.7,2336.4,32.42797]
[1725986842591,1.11832543,2336.7,2336.5,0.42796]
[1725986843091,2.87984095,2336.8,2336.6,0.42795]
[1725986843092,1.88712543,2336.8,2336.6,0.42795]
[1725986843292,1.88712543,2336.8,2336.7,0.42793]
[1725986844098,0.7688,2336.8,2336.7,0.42793]
[1725986844392,0.7688,2336.8,2336.6,0.42793]
[1725986844598,0.7688,2336.8,2336.6,0.42795]
[1725986844808,0.7688,2336.8,2336.4,32.0]
[1725986844990,0.7688,2336.8,2336.4,0.42798]
[1725986844991,1.88712543,2336.8,2336.4,0.42798]
[1725986845191,0.42795,2336.6,2336.4,0.42798]
[1725986845593,0.3729,2336.5,2336.4,0.42798]
[1725986847801,1.11832543,2336.7,2336.6,0.42795]
[1725986847991,1.11832543,2336.7,2336.3,4.62283063]
[1725986847992,1.1643,2336.8,2336.7,0.42793]
[1725986849206,1.1643,2336.8,2336.6,0.42794]
[1725986849207,1.59222,2336.8,2336.6,0.42794]
[1725986849499,1.59221,2336.8,2336.6,0.42794]
[1725986849702,1.59221,2336.8,2336.6,0.42793]
[1725986850007,1.59221,2336.8,2336.7,0.42793]
[1725986851898,1.1643,2336.8,2336.6,0.42794]
[1725986852094,1.59222,2336.8,2336.6,0.42794]
[1725986852501,0.42793,2336.7,2336.6,0.42794]
[1725986852912,1.59222,2336.8,2336.6,0.42794]
[1725986853605,1.59222,2336.8,2336.7,0.42793]
[1725986856300,0.42793,2336.7,2336.6,0.42793]
[1725986856505,1.59222,2336.8,2336.7,0.42793]
[1725986856701,2.2341,2336.8,2336.2,33.07004]
[1725986856906,0.42796,2336.6,2336.5,0.42796]
[1725986859706,2.2341,2336.8,2336.3,4.62914186]
[1725986859707,1.1643,2336.8,2336.3,4.62914186]
[1725986859905,1.59222,2336.8,2336.7,0.42793]
[1725986860408,1.1643,2336.8,2336.7,1.96793]
[1725986860706,1.59221,2336.8,2336.7,1.96793]
[1725986861101,1.59221,2336.8,2336.7,0.42793]
[1725986861102,1.1643,2336.8,2336.7,0.42793]
[1725986864514,0.42793,2336.7,2336.6,0.42794]
[1725986864706,2.23409,2336.8,2336.5,1.54]
[1725986865012,0.42795,2336.6,2336.2,33.54]
[1725986865211,0.42794,2336.7,2336.5,1.54]
[1725986865420,1.1643,2336.8,2336.5,1.54]
[1725986865620,1.59221,2336.8,2336.5,1.54]
[1725986866117,1.59221,2336.8,2336.7,0.42793]
[1725986866618,2.71053543,2336.8,2336.7,0.42793]
[1725986867315,0.42793,2336.7,2336.6,0.42794]
[1725986867517,1.54626543,2336.7,2336.5,0.42796]
[1725986867717,0.42795,2336.6,2336.5,0.42796]
[1725986868619,1.11832543,2336.7,2336.5,0.42796]
[1725986868810,1.54625543,2336.7,2336.6,0.42795]
[1725986869206,0.42795,2336.6,2336.5,1.96795]
[1725986871615,0.42795,2336.6,2336.5,0.42795]
[1725986871915,0.42796,2336.5,2336.4,1.96798]
[1725986872122,1.54627543,2336.6,2336.5,0.42796]
[1725986873713,1.11832543,2336.7,2336.4,1.54]
[1725986873915,0.42796,2336.6,2336.5,0.42796]
[1725986874122,0.42796,2336.6,2336.4,1.96797]
[1725986874123,0.42796,2336.5,2336.4,1.96797]
[1725986874627,0.3749,2336.5,2336.4,1.96797]
[1725986875121,0.80286,2336.5,2336.4,1.96797]
[1725986875318,0.3749,2336.5,2336.4,1.96797]
[1725986876111,1.49322543,2336.5,2336.4,1.96797]
[1725986878227,2.05802095,2336.5,2336.4,2.60899514]
[1725986878426,2.48598095,2336.5,2336.4,2.60899514]
[1725986878621,2.05802095,2336.5,2336.4,1.96797]
[1725986879324,0.3749,2336.5,2336.4,2.60898206]
[1725986879922,2.05668025,2336.5,2336.4,2.60898206]
[1725986880119,2.24425058,2336.6,2336.4,6.46101206]
[1725986880322,2.24425058,2336.6,2336.5,2.18101206]
[1725986880523,2.24425058,2336.6,2336.5,1.96796]
[1725986880827,2.24425058,2336.6,2336.5,2.60997274]
[1725986881131,2.80539383,2336.7,2336.6,0.42795]
[1725986881317,4.72182254,2336.7,2336.6,0.42795]
[1725986881521,4.72182254,2336.7,2336.6,1.06979051]
[1725986881717,4.72182254,2336.7,2336.6,5.34979051]
[1725986881922,4.72182254,2336.7,2336.6,5.20793104]
[1725986882118,4.72182254,2336.7,2336.6,1.56988405]
[1725986882119,5.14975254,2336.7,2336.6,1.56988405]
[1725986882321,2.34435871,2336.7,2336.6,1.56988405]
[1725986882528,2.34435871,2336.7,2336.6,0.64195301]
[1725986883031,0.7688,2336.8,2336.7,0.42793]
[1725986883228,1.19672,2336.8,2336.6,0.42793]
[1725986883444,0.7688,2336.8,2336.7,32.30982131]
[1725986883635,6.17289445,2337.0,2336.9,0.42789]
[1725986883826,2.80642185,2337.2,2337.1,0.42785]
[1725986884134,2.80604745,2337.4,2337.3,0.42782]
[1725986884322,2.80604745,2337.5,2337.3,30.76971131]
[1725986884525,2.80604745,2337.4,2337.3,30.12782]
[1725986884829,2.80604745,2337.4,2337.3,30.76907564]
[1725986885226,2.80604745,2337.5,2337.3,30.76906564]
[1725986885428,4.40250745,2337.6,2337.4,1.54]
[1725986885928,2.80604745,2337.5,2337.4,1.54]
[1725986886126,2.24173652,2337.5,2337.4,1.06843869]
[1725986886327,2.24173652,2337.5,2337.4,0.4278]
[1725986886520,2.24173652,2337.5,2337.4,1.06840164]
[1725986886722,2.24173652,2337.5,2337.4,30.76838185]
[1725986886929,3.41043652,2337.6,2337.5,0.42778]
[1725986887525,1.1687,2337.6,2337.5,0.42778]
[1725986887725,1.1687,2337.6,2337.5,30.12778]
[1725986887925,1.1687,2337.6,2337.5,33.46778]
[1725986888325,2.84800487,2337.6,2337.5,33.04]
[1725986888931,2.84800487,2337.6,2337.5,29.7]
[1725986889128,2.8479992,2337.6,2337.5,29.7]
[1725986889931,2.8479992,2337.6,2337.5,30.12778]
[1725986890137,2.8479992,2337.6,2337.5,29.7]
[1725986890333,3.2757592,2337.6,2337.5,29.7]
[1725986890638,1.59646,2337.6,2337.5,29.7]
[1725986890836,3.27473295,2337.6,2337.5,29.7]
[1725986891043,3.2747397,2337.6,2337.5,29.7]
[1725986891337,9.18520652,2337.6,2337.5,29.7]
[1725986892242,9.18520652,2337.6,2337.0,3.34]
[1725986892243,0.42785,2337.2,2337.0,3.34]
[1725986892430,1.85652449,2337.1,2337.0,3.34]
[1725986892626,0.1,2337.9,2337.8,0.42773]
[1725986892829,1.11831072,2338.2,2338.1,0.42767]
[1725986893133,1.49141072,2338.3,2338.1,24.74]
[1725986893333,0.3731,2338.3,2338.2,0.42765]
[1725986893533,0.3731,2338.3,2338.1,25.16766]
[1725986893938,0.3731,2338.3,2338.1,25.16765]
[1725986894134,1.49141072,2338.3,2338.0,3.76768]
[1725986894333,0.368,2338.2,2338.0,3.34]
[1725986894734,0.368,2338.2,2338.0,24.74]
[1725986895341,0.368,2338.2,2338.0,3.34]
[1725986896129,0.368,2338.2,2338.1,3.34]
[1725986897945,5.07245,2338.2,2338.1,3.34]
[1725986898246,0.42769,2338.0,2337.7,3.44]
[1725986898459,0.3815,2337.9,2337.7,3.34]
[1725986898747,0.80921,2337.9,2337.7,3.34]
[1725986899045,0.3879,2337.8,2337.7,3.34]
[1725986900943,0.42778,2337.5,2337.4,0.1]
[1725986901137,0.42778,2337.5,2336.9,4.195]
[1725986901138,0.42782,2337.3,2337.1,3.34]
[1725986901341,0.42781,2337.4,2337.1,3.34]
[1725986901643,1.54610072,2337.5,2337.1,0.42785]
[1725986901832,0.4278,2337.4,2337.1,0.42785]
[1725986902034,1.11831072,2337.6,2337.0,3.34]
[1725986902231,5.01759271,2337.7,2337.4,3.34]
[1725986902232,1.11831072,2337.7,2337.4,3.34]
[1725986902435,1.67759271,2337.8,2337.4,3.76779]
[1725986902436,1.11831072,2337.8,2337.4,3.76779]
[1725986902646,0.42774,2337.8,2337.4,3.76779]
[1725986903133,0.42775,2337.7,2337.4,3.76779]
[1725986903543,1.11831072,2337.9,2337.5,0.42778]
[1725986903731,0.42772,2337.9,2337.5,0.42778]
[1725986904149,0.7847,2337.8,2337.5,0.42776]
[1725986904546,0.7847,2337.8,2337.5,0.82736]
[1725986905636,0.7847,2337.8,2337.7,0.42774]
[1725986905841,0.3807,2337.8,2337.7,3.76774]
[1725986906040,1.11831072,2338.3,2337.7,7.6176]
[1725986906347,0.377,2338.2,2338.0,0.42768]
[1725986906747,0.377,2338.2,2337.9,3.7166]
[1725986906954,1.11831072,2338.5,2337.9,3.7166]
[1725986906955,1.11831072,2338.5,2338.1,3.34]
[1725986907243,0.377,2338.5,2338.3,3.34]
[1725986907637,0.377,2338.5,2338.3,3.76763]
[1725986909345,0.377,2338.5,2338.3,3.76762]
[1725986909647,1.11831072,2338.9,2338.3,3.34]
[1725986909846,0.7754,2338.9,2338.6,0.42757]
[1725986910148,0.7754,2338.9,2338.5,3.34]
[1725986910337,0.7754,2338.9,2338.6,0.42756]
[1725986910538,0.7754,2338.9,2338.5,3.34]
[1725986910738,0.7754,2338.9,2338.7,0.42756]
[1725986911544,0.7754,2338.9,2338.5,3.34]
[1725986911545,0.7754,2338.9,2338.6,0.42757]
[1725986911947,1.20293,2338.9,2338.6,0.42757]
[1725986912740,0.42755,2338.8,2338.5,3.76759]
[1725986912937,0.42755,2338.8,2338.4,0.7427]
[1725986912938,0.7754,2338.9,2338.4,0.7427]
[1725986913142,0.7754,2338.9,2338.4,1.1703]
[1725986913143,0.42756,2338.7,2338.4,1.1703]
[1725986913944,0.42756,2338.7,2338.5,0.4276]
[1725986914252,0.42759,2338.6,2338.3,3.76762]
[1725986914565,0.42757,2338.7,2338.4,0.42761]
[1725986914854,0.42757,2338.7,2338.3,3.34]
[1725986914855,0.42757,2338.7,2338.5,0.42759]
[1725986915243,0.42754,2338.8,2338.5,3.76758]
[1725986915742,0.42756,2338.7,2338.5,3.76758]
[1725986918853,0.42758,2338.6,2338.5,3.76758]
[1725986919245,0.42758,2338.6,2338.5,0.4276]
[1725986919554,0.42757,2338.7,2338.5,0.42759]
[1725986919753,1.84425,2338.9,2338.5,0.42759]
[1725986919968,0.42758,2338.7,2338.5,0.42759]
[1725986920454,0.42758,2338.6,2338.5,0.42759]
[1725986921050,1.84425,2338.9,2338.5,0.42759]
[1725986921051,0.42757,2338.7,2338.5,0.42759]
[1725986921955,0.7754,2338.9,2338.3,3.34]
[1725986922154,0.7754,2338.9,2338.1,5.051]
[1725986922155,1.20293,2338.9,2338.8,0.42754]
[1725986922355,0.42754,2338.8,2338.7,0.42755]
[1725986925262,1.20294,2338.9,2338.7,0.42755]
[1725986925446,0.7754,2338.9,2338.7,0.42755]
[1725986925652,0.42754,2338.8,2338.7,0.42755]
[1725986925848,0.7754,2338.9,2338.6,0.7714]
[1725986926049,1.20294,2338.9,2338.7,3.76755]
[1725986926259,1.20294,2338.9,2338.8,0.42754]
[1725986926260,0.7754,2338.9,2338.8,0.42754]
[1725986926567,1.20293,2338.9,2338.7,3.76755]
[1725986927261,0.42754,2338.8,2338.7,0.42755]
[1725986927764,1.20294,2338.9,2338.7,0.42755]
[1725986928651,0.42755,2338.8,2338.6,1.19897]
[1725986928847,0.42754,2338.8,2338.6,1.19898]
[1725986929458,0.42761,2338.5,2338.3,3.86763]
[1725986929650,0.42757,2338.7,2338.5,0.42759]
[1725986929847,2.96254072,2338.9,2338.6,0.42757]
[1725986929848,0.42756,2338.8,2338.6,0.42757]
[1725986930063,1.89371072,2338.9,2338.7,0.42756]
[1725986930064,2.32125072,2338.9,2338.7,0.42756]
[1725986930256,1.20294,2338.9,2338.7,0.42754]
[1725986930557,1.20293,2338.9,2338.7,0.42754]
[1725986932362,2.32124072,2338.9,2338.7,0.42754]
[1725986933363,2.32125072,2338.9,2338.7,0.42754]
[1725986934365,0.42754,2338.8,2338.7,0.42754]
[1725986936257,0.42754,2338.8,2338.7,0.42756]
[1725986937566,1.89371072,2338.9,2338.7,0.42754]
[1725986937763,0.42754,2338.8,2338.7,0.42754]
[1725986938370,1.54585072,2338.8,2338.7,0.42754]
[1725986938674,0.42754,2338.8,2338.7,0.42754]
[1725986938866,1.54585072,2338.8,2338.7,0.42754]
[1725986939368,0.42754,2338.8,2338.7,0.42754]
[1725986939671,0.42755,2338.8,2338.7,0.42755]
[1725986940164,0.42754,2338.8,2338.7,0.42755]
[1725986941262,1.49101072,2338.9,2338.8,0.42754]
[1725986941465,2.07759271,2339.0,2338.9,0.42753]
[1725986941466,0.42751,2339.0,2338.9,0.42753]
[1725986941661,1.51781072,2339.1,2338.9,0.42753]
[1725986941662,1.94531072,2339.1,2338.9,3.76753]
[1725986941863,1.51781072,2339.1,2339.0,0.42751]
[1725986942061,1.11644915,2339.2,2339.1,0.42749]
[1725986942271,1.11644915,2339.3,2339.2,0.42747]
[1725986942468,1.11644915,2339.4,2339.3,0.42745]
[1725986942765,1.11644915,2339.4,2339.3,3.76745]
[1725986942969,1.54387915,2339.4,2339.3,3.34]
[1725986943165,1.54387915,2339.4,2339.2,22.03658555]
[1725986943166,0.42745,2339.3,2339.2,24.94912555]
[1725986943365,1.94339915,2339.3,2339.2,3.34]
[1725986943565,0.42752,2339.0,2338.8,3.44]
[1725986943871,0.3963,2338.9,2338.8,3.76754]
[1725986944463,0.3963,2338.9,2338.8,25.16754]
[1725986948664,1.11644915,2339.0,2338.9,0.42753]
[1725986949768,1.11644915,2339.0,2338.9,1.49635]
[1725986950170,1.11644915,2339.0,2338.9,5.77155]
[1725986950377,1.11644915,2339.0,2338.9,6.41826717]
[1725986951273,1.11644915,2339.0,2338.9,13.98669062]
[1725986951578,1.11644915,2339.0,2338.9,15.02105248]
[1725986951771,1.11644915,2339.0,2338.9,18.36105248]
[1725986951972,1.67759271,2339.1,2339.0,2.56505]
[1725986952181,1.67759271,2339.1,2339.0,8.77476881]
[1725986952381,1.67759271,2339.1,2339.0,16.21147169]
[1725986952882,2.23697537,2339.2,2339.1,1.49622]
[1725986953085,2.23697537,2339.2,2339.1,9.75773536]
[1725986953383,2.23697537,2339.2,2339.1,15.75773536]
[1725986953685,2.23697537,2339.2,2339.1,17.291348]
[1725986954179,2.7812895,2339.4,2339.1,15.795128]
[1725986954482,3.3664726,2339.6,2339.5,0.42742]
[1725986954675,3.3664726,2339.6,2339.5,15.40423651]
[1725986955080,0.7739,2340.0,2339.5,16.01054647]
[1725986955268,0.7739,2340.0,2339.8,3.34]
[1725986955472,1.20123,2340.0,2339.7,3.34]
[1725986955974,1.20123,2340.0,2339.7,3.76738]
[1725986956281,0.7739,2340.0,2339.7,3.76738]
[1725986956681,1.20124,2340.0,2339.7,3.34]
[1725986956878,1.20124,2340.0,2339.7,3.76738]
[1725986957482,0.42735,2339.9,2339.7,3.34]
[1725986957680,0.42736,2339.8,2339.7,3.34]
[1725986957978,0.42735,2339.9,2339.7,3.34]
[1725986958577,0.7739,2340.0,2339.7,3.76737]
[1725986958983,0.42735,2339.9,2339.7,3.76737]
[1725986962383,0.7739,2340.0,2339.7,3.34]
[1725986962675,1.20123,2340.0,2339.9,3.34]
[1725986963087,1.06825,2340.2,2339.9,3.34]
[1725986963279,5.5024426,2340.8,2340.1,3.34]
[1725986963280,1.1658,2340.4,2340.1,3.34]
[1725986963489,1.1658,2340.4,2340.1,3.7673]
[1725986963490,0.42727,2340.3,2340.1,3.7673]
[1725986963682,1.1658,2340.4,2340.3,0.42727]
[1725986963885,0.7849,2340.4,2340.3,0.42727]
[1725986964083,0.7849,2340.4,2340.3,21.82727]
[1725986964282,0.3872,2340.4,2340.3,21.82727]
[1725986965190,0.3872,2340.4,2340.3,26.10007]
[1725986965485,0.3985,2340.8,2340.3,26.4734]
[1725986965687,1.22028,2340.8,2340.7,3.34]
[1725986966280,1.22028,2340.8,2340.5,0.42722]
[1725986966494,0.42721,2340.6,2340.5,3.34]
[1725986968178,0.7931,2340.8,2340.5,3.34]
[1725986968383,0.42721,2340.6,2340.5,3.34]
[1725986969084,0.42725,2340.4,2340.3,3.34]
[1725986969390,0.42728,2340.3,2340.1,3.34]
[1725986969687,0.7533,2340.3,2340.2,0.42729]
[1725986970086,1.18057,2340.3,2340.2,0.42729]
[1725986970990,0.7533,2340.3,2340.2,0.42729]
[1725986972591,1.18057,2340.3,2340.2,0.42729]
[1725986974287,0.7533,2340.3,2340.2,0.42729]
[1725986974694,0.42723,2340.5,2340.4,0.42725]
[1725986974892,0.42722,2340.6,2340.4,3.34]
[1725986975088,0.386,2340.7,2340.6,0.42721]
[1725986975089,0.8132,2340.7,2340.6,0.42721]
[1725986975996,0.42721,2340.6,2340.5,3.76722]
[1725986976582,0.8132,2340.7,2340.6,0.42721]
[1725986976997,0.386,2340.7,2340.6,0.42721]
[1725986977588,0.8132,2340.7,2340.6,0.42721]
[1725986981392,0.42721,2340.6,2340.5,3.34]
[1725986981585,0.42721,2340.6,2340.5,3.76723]
[1725986981791,0.42725,2340.5,2340.4,3.34]
[1725986982088,0.80025,2340.5,2340.4,3.34]
[1725986982785,0.373,2340.5,2340.4,3.76724]
[1725986983393,0.386,2340.7,2340.4,7.6128]
[1725986983594,0.81321,2340.7,2340.6,0.42721]
[1725986984002,0.81321,2340.7,2340.5,3.34]
[1725986984003,0.42721,2340.6,2340.5,3.34]
[1725986984199,1.45401,2340.7,2340.4,3.76724]
[1725986984200,0.42723,2340.5,2340.4,3.76724]
[1725986985695,0.42723,2340.5,2340.4,3.76725]
[1725986986801,0.42723,2340.5,2340.4,3.34]
[1725986987303,0.42723,2340.5,2340.4,3.76725]
[1725986987501,0.42723,2340.5,2340.4,3.34]
[1725986987502,4.70003,2340.5,2340.4,3.34]
[1725986988007,0.42723,2340.5,2340.4,3.34]
[1725986988512,4.70003,2340.5,2340.4,3.34]
[1725986988700,0.42723,2340.5,2340.4,3.34]
[1725986988896,4.70003,2340.5,2340.4,3.34]
[1725986989107,4.70003,2340.5,2340.0,26.351]
[1725986989108,11.34089,2340.5,2340.0,28.935]
[1725986989303,0.7643,2340.4,2340.2,0.42728]
[1725986989503,0.81798,2340.3,2340.2,0.42728]
[1725986989703,0.42729,2340.2,2340.1,0.42729]
[1725986990594,1.45889,2340.3,2340.0,24.74]
[1725986990902,0.4273,2340.2,2340.1,0.42729]
[1725986991209,0.4273,2340.2,2340.1,3.76729]
[1725986992005,0.42731,2340.1,2340.0,25.16732]
[1725986992303,0.42731,2340.1,2340.0,3.34]
[1725986994001,0.42731,2340.1,2340.0,3.76732]
[1725986994400,1.4589,2340.3,2339.8,3.34]
[1725986994601,0.42734,2339.9,2339.8,3.76736]
[1725986995011,0.81444,2339.9,2339.8,3.76736]
[1725986995809,1.8828,2339.9,2339.8,3.34]
[1725986996512,0.81444,2339.9,2339.8,3.34]
[1725986998009,0.81444,2339.9,2339.8,3.76736]
[1725986998209,0.81444,2339.9,2339.8,3.34]
[1725986999012,1.8828,2339.9,2339.8,3.34]
[1725987000102,0.42736,2339.8,2339.7,21.82738]
[1725987000300,0.42741,2339.6,2339.5,0.42741]
[1725987000502,0.42741,2339.6,2339.5,1.96741]
[1725987000799,0.42741,2339.6,2339.5,23.36741]
[1725987001207,0.42739,2339.7,2339.6,0.42738]
[1725987001415,1.4959,2339.6,2339.5,21.4]
[1725987001604,1.4959,2339.6,2339.5,1.96742]
[1725987001605,0.7691,2339.6,2339.5,1.96742]
[1725987001805,0.3871,2339.9,2339.5,1.54]
[1725987002013,0.42737,2339.8,2339.7,1.96737]
[1725987002603,0.42736,2339.8,2339.7,1.96736]
[1725987002802,0.42736,2339.8,2339.7,2.74977]
[1725987003814,1.18945,2339.9,2339.8,0.42736]
[1725987004013,0.80235,2339.9,2339.8,0.42736]
[1725987004214,0.80235,2339.9,2339.8,3.75736]
[1725987004412,0.375,2339.9,2339.8,3.75736]
[1725987004613,0.42733,2340.0,2339.9,0.42733]
[1725987004809,0.42734,2339.9,2339.8,3.75735]
[1725987006116,0.42734,2339.9,2339.8,3.33]
[1725987006415,0.42734,2339.9,2339.8,3.75736]
[1725987007219,0.42736,2339.8,2339.7,0.7824]
[1725987007522,0.42736,2339.8,2339.7,1.20978]
[1725987008115,0.42735,2339.9,2339.8,0.42735]
[1725987008326,0.42735,2339.9,2339.7,0.7824]
[1725987008327,0.82793,2340.0,2339.9,0.42734]
[1725987008619,0.82793,2340.0,2339.7,0.7824]
[1725987008620,0.42735,2339.9,2339.8,0.42735]
[1725987010716,0.42734,2339.9,2339.8,3.75735]
[1725987011105,0.4006,2340.0,2339.9,0.42734]
[1725987011106,0.82793,2340.0,2339.9,0.42734]
[1725987011616,0.82793,2340.0,2339.8,3.33]
[1725987011617,1.2102,2340.2,2340.1,0.42731]
[1725987012013,0.82329,2340.2,2340.1,0.42731]
[1725987012214,0.82329,2340.2,2340.1,1.19011]
[1725987014421,0.82329,2340.2,2340.0,3.75731]
[1725987014422,0.42731,2340.1,2340.0,3.75731]
[1725987015526,0.8233,2340.2,2340.1,0.42731]
[1725987016117,0.42731,2340.1,2340.0,3.75731]
[1725987017925,0.42731,2340.1,2340.0,3.33]
[1725987018126,0.79511,2340.1,2340.0,3.33]
[1725987018419,0.79511,2340.1,2340.0,3.75732]
[1725987018618,0.42731,2340.1,2340.0,3.75732]
[1725987019309,0.8233,2340.2,2340.1,0.42731]
[1725987019514,2.4992535,2340.2,2340.1,0.42731]
[1725987019826,0.8233,2340.2,2340.1,0.42731]
[1725987021524,0.396,2340.2,2340.1,0.42731]
[1725987021719,2.0719535,2340.2,2340.1,0.42731]
[1725987021919,0.42731,2340.1,2340.0,3.75732]
[1725987022822,3.1401835,2340.2,2339.9,0.42732]
[1725987023024,0.42733,2340.0,2339.9,0.42732]
[1725987025023,2.1032735,2340.1,2340.0,0.42732]
[1725987026118,2.1032735,2340.1,2340.0,1.96732]
[1725987026729,0.42738,2339.7,2339.6,21.4]
[1725987026923,0.42738,2339.7,2339.6,22.94]
[1725987027227,0.42738,2339.7,2339.6,24.031459]
[1725987027526,1.1713,2339.7,2339.6,23.36739]
[1725987027832,0.42741,2339.6,2339.5,1.54]
[1725987028332,0.42746,2339.3,2339.2,1.54]
[1725987028536,0.42746,2339.3,2339.2,2.20464056]
[1725987028721,0.42746,2339.3,2339.2,1.54]
[1725987028918,1.67870208,2339.5,2339.2,1.54]
[1725987029130,2.10612208,2339.5,2339.4,1.54]
[1725987029529,0.42744,2339.4,2339.3,1.54]
[1725987029929,0.42747,2339.3,2339.2,1.54]
[1725987030235,0.83007,2339.3,2339.2,1.54]
[1725987032031,2.50850376,2339.3,2339.2,1.54]
[1725987032524,2.89530376,2339.3,2339.2,1.54]
[1725987035231,3.96394376,2339.3,2339.2,1.54]
[1725987035533,3.96394376,2339.3,2339.0,23.36751]
[1725987035534,0.42749,2339.1,2339.0,23.36751]
[1725987036434,0.79358,2339.2,2339.0,23.36751]
[1725987036730,0.3661,2339.2,2339.1,0.42749]
[1725987037336,0.79357,2339.2,2339.1,0.42749]
[1725987038732,0.3661,2339.2,2339.0,22.94]
[1725987038940,0.79358,2339.2,2339.1,0.42749]
[1725987039636,0.3661,2339.2,2339.1,0.42749]
[1725987039840,0.3661,2339.2,2339.1,0.80089]
[1725987040544,0.79357,2339.2,2339.1,0.80089]
[1725987041027,0.3661,2339.2,2339.1,0.80089]
[1725987041223,0.79357,2339.2,2339.1,0.80089]
[1725987042434,0.79357,2339.2,2339.1,0.42749]
[1725987045535,0.3661,2339.2,2339.1,0.42749]
[1725987045735,0.3868,2339.3,2339.2,0.42747]
[1725987046036,0.42744,2339.4,2339.3,0.42745]
[1725987048743,0.3914,2339.5,2339.2,1.54]
[1725987048744,0.3914,2339.5,2339.4,0.42743]
[1725987049046,1.67843376,2339.7,2339.4,1.54]
[1725987049236,3.30629168,2339.9,2339.7,1.54]
[1725987049237,2.49341376,2339.8,2339.7,1.54]
[1725987049439,0.81498,2339.8,2339.7,1.54]
[1725987050243,0.81498,2339.8,2339.7,1.96738]
[1725987050742,0.81498,2339.8,2339.7,1.54]
[1725987051337,0.81498,2339.8,2339.7,1.96738]
[1725987051533,0.3876,2339.8,2339.7,1.54]
[1725987052940,0.81496,2339.8,2339.7,1.96738]
[1725987053336,0.3876,2339.8,2339.7,1.96738]